bitfinex/quotes_BTCUSD_20220226
["timestamp","ask_amount","ask_price","bid_price","bid_amount"]
[1645869101252,1.56653044,38855.0,38854.0,0.00360125]
[1645869101449,1.56653044,38855.0,38854.0,0.67044882]
[1645869102048,1.56753044,38855.0,38854.0,0.67044882]
[1645869103449,1.56653044,38855.0,38854.0,0.67044882]
[1645869104496,1.56653044,38855.0,38854.0,0.67037317]
[1645869105999,1.56753044,38855.0,38854.0,0.67037317]
[1645869107199,1.56753044,38855.0,38854.0,0.66287317]
[1645869107446,1.56653044,38855.0,38854.0,0.66287317]
[1645869108047,1.56753044,38855.0,38854.0,0.66287317]
[1645869110152,1.56853044,38855.0,38854.0,0.66287317]
[1645869110552,1.56853044,38855.0,38854.0,0.66582824]
[1645869111394,1.56653044,38855.0,38854.0,0.66582824]
[1645869111994,1.56653044,38855.0,38854.0,0.27933524]
[1645869112196,1.5777664,38855.0,38854.0,0.27933524]
[1645869112395,4.05134102,38855.0,38854.0,0.14876898]
[1645869112596,0.9396,38853.0,38852.0,0.05]
[1645869112901,1.35181758,38853.0,38852.0,0.05]
[1645869113095,1.52586331,38853.0,38852.0,0.05]
[1645869113295,1.55161331,38853.0,38852.0,0.05]
[1645869113895,1.74486531,38853.0,38852.0,0.05]
[1645869114943,1.73424773,38853.0,38852.0,0.045]
[1645869115248,1.77355021,38853.0,38852.0,0.045]
[1645869116042,1.77455021,38853.0,38852.0,0.045]
[1645869117447,1.77355021,38853.0,38852.0,0.045]
[1645869118446,1.78281039,38853.0,38852.0,0.045]
[1645869119501,1.77355021,38853.0,38852.0,0.045]
[1645869121202,1.78393076,38853.0,38852.0,0.045]
[1645869121704,1.88971159,38853.0,38852.0,0.045]
[1645869122004,0.7851,38847.0,38845.0,0.01229]
[1645869122204,0.8623233,38847.0,38845.0,0.01229]
[1645869122448,1.0425733,38847.0,38845.0,0.01229]
[1645869122647,1.21661903,38847.0,38845.0,0.01229]
[1645869122847,1.0425733,38847.0,38845.0,0.01229]
[1645869123049,1.0425733,38847.0,38845.0,0.0125929]
[1645869123451,1.21661903,38847.0,38845.0,0.0125929]
[1645869124047,1.21661903,38847.0,38845.0,0.01229]
[1645869124248,1.21661903,38847.0,38845.0,0.01258267]
[1645869124851,0.43151903,38847.0,38845.0,0.01258267]
[1645869125154,0.19979573,38847.0,38845.0,0.01258267]
[1645869125352,0.02575,38847.0,38845.0,0.01229]
[1645869125652,0.02575,38847.0,38845.0,0.01258267]
[1645869126213,0.20076,38848.0,38845.0,0.01258267]
[1645869126214,0.12391,38848.0,38845.0,0.01258267]
[1645869126405,0.08169391,38850.0,38847.0,0.23198899]
[1645869126603,0.08169391,38850.0,38848.0,0.02576]
[1645869129103,0.08169391,38850.0,38847.0,0.23229188]
[1645869129503,0.08169391,38850.0,38848.0,0.02576]
[1645869129704,0.08169391,38850.0,38847.0,0.23229188]
[1645869130262,0.08369391,38850.0,38847.0,0.25802755]
[1645869131361,0.08369391,38850.0,38847.0,0.25774899]
[1645869131568,0.08369391,38850.0,38847.0,0.25802755]
[1645869132164,0.08169391,38850.0,38847.0,0.25802755]
[1645869132464,0.08169391,38850.0,38849.0,0.02576]
[1645869132667,0.201,38853.0,38852.0,0.02576]
[1645869132865,0.003,38855.0,38852.0,0.02576]
[1645869133467,0.264664,38862.0,38852.0,0.02576]
[1645869133695,0.264664,38862.0,38851.0,0.16338781]
[1645869133696,0.73870973,38862.0,38851.0,0.16338781]
[1645869133996,0.73870973,38862.0,38851.0,0.16366636]
[1645869134199,0.43870973,38862.0,38851.0,0.16366636]
[1645869134795,0.43870973,38862.0,38851.0,0.16237949]
[1645869135096,0.73870973,38862.0,38851.0,0.16238197]
[1645869135297,0.43870973,38862.0,38851.0,0.16238197]
[1645869135896,0.43870973,38862.0,38860.0,0.17241938]
[1645869135897,0.264664,38862.0,38860.0,0.17241938]
[1645869136096,0.20028,38862.0,38860.0,0.17241938]
[1645869137548,0.20028,38862.0,38860.0,0.17188859]
[1645869138148,0.1993706,38862.0,38860.0,0.17188859]
[1645869138347,0.1993706,38862.0,38860.0,0.19764859]
[1645869138546,0.17804573,38867.0,38860.0,0.17188859]
[1645869138547,0.004,38867.0,38860.0,0.17188859]
[1645869139348,0.025,38871.0,38860.0,0.17188859]
[1645869139548,0.025,38871.0,38860.0,0.19764859]
[1645869140146,0.029,38871.0,38866.0,0.18766701]
[1645869140547,0.1835,38871.0,38857.0,0.2156]
[1645869140752,0.3,38870.0,38858.0,0.02576]
[1645869140948,0.064376,38867.0,38857.0,0.2156]
[1645869141599,0.3,38870.0,38865.0,0.2047794]
[1645869141799,0.025,38871.0,38865.0,0.2047794]
[1645869142000,0.20004,38866.0,38865.0,0.2047794]
[1645869142203,0.325,38871.0,38865.0,0.2047794]
[1645869142400,0.20022,38870.0,38865.0,0.2047794]
[1645869142599,0.20022,38870.0,38865.0,0.2043232]
[1645869144603,0.1545,38868.0,38857.0,0.1156]
[1645869144959,1.0851,38867.0,38857.0,0.1156]
[1645869145160,0.0516,38866.0,38857.0,0.1156]
[1645869145357,0.064386,38864.0,38857.0,0.1156]
[1645869145556,0.12877,38864.0,38857.0,0.1156]
[1645869145758,0.12877,38864.0,38861.0,0.64238072]
[1645869145957,0.3,38863.0,38861.0,0.64238072]
[1645869146157,0.13177,38864.0,38861.0,0.64238072]
[1645869146357,0.20088,38863.0,38861.0,0.64238072]
[1645869146558,0.50088,38863.0,38861.0,0.64238072]
[1645869146958,0.20088,38863.0,38861.0,0.64238072]
[1645869148159,0.20288,38863.0,38861.0,0.64238072]
[1645869149103,0.9396,38862.0,38861.0,0.64238072]
[1645869149303,1.2912,38862.0,38861.0,0.64238072]
[1645869149601,1.46524573,38862.0,38861.0,0.64238072]
[1645869149904,0.22564573,38862.0,38861.0,0.64238072]
[1645869150109,0.22764573,38862.0,38861.0,0.64238072]
[1645869150305,0.0536,38862.0,38861.0,0.64238072]
[1645869151504,0.8367,38862.0,38861.0,0.64238072]
[1645869151903,0.22564573,38862.0,38861.0,0.64238072]
[1645869152304,0.0516,38862.0,38861.0,0.64238072]
[1645869152752,1.3168233,38862.0,38861.0,0.64238072]
[1645869153149,1.49086903,38862.0,38861.0,0.64238072]
[1645869154247,1.49286903,38862.0,38861.0,0.64238072]
[1645869155549,1.49086903,38862.0,38861.0,0.64238072]
[1645869155948,0.70576903,38862.0,38861.0,0.64238072]
[1645869156196,1.49086903,38862.0,38861.0,0.64238072]
[1645869156496,0.5317233,38862.0,38861.0,0.64238072]
[1645869157196,1.3168233,38862.0,38861.0,0.64238072]
[1645869157596,1.49086903,38862.0,38861.0,0.64238072]
[1645869158197,1.49386903,38862.0,38861.0,0.64238072]
[1645869159399,1.49086903,38862.0,38861.0,0.64238072]
[1645869160251,1.49386903,38862.0,38861.0,0.64238072]
[1645869161253,0.40876903,38862.0,38861.0,0.64238072]
[1645869161452,0.40576903,38862.0,38861.0,0.64238072]
[1645869161651,0.2317233,38862.0,38861.0,0.64238072]
[1645869162054,0.40576903,38862.0,38861.0,0.64238072]
[1645869162250,1.3168233,38862.0,38861.0,0.64238072]
[1645869162652,1.49086903,38862.0,38861.0,0.64238072]
[1645869164202,1.49286903,38862.0,38861.0,0.64238072]
[1645869165405,1.49086903,38862.0,38861.0,0.64238072]
[1645869166207,1.49286903,38862.0,38861.0,0.64238072]
[1645869167454,1.49086903,38862.0,38861.0,0.64238072]
[1645869167656,1.49086903,38862.0,38861.0,0.51368072]
[1645869167858,1.49663409,38862.0,38861.0,0.51368072]
[1645869168053,1.94455338,38862.0,38861.0,0.51368072]
[1645869168457,2.58895338,38862.0,38861.0,0.51368072]
[1645869168855,3.02386628,38862.0,38861.0,0.51368072]
[1645869169055,2.68895338,38862.0,38861.0,0.51368072]
[1645869169255,3.12386628,38862.0,38861.0,0.51368072]
[1645869169654,3.12386628,38862.0,38861.0,0.51374825]
[1645869169655,3.02386628,38862.0,38861.0,0.51374825]
[1645869169855,3.12386628,38862.0,38861.0,0.51374825]
[1645869170056,3.35599176,38862.0,38861.0,0.51374825]
[1645869170257,2.86130662,38862.0,38861.0,0.51374825]
[1645869171057,2.18126185,38862.0,38861.0,0.51374825]
[1645869171518,2.18026185,38862.0,38861.0,0.51374825]
[1645869172302,2.67818114,38862.0,38861.0,0.51374825]
[1645869172500,2.68857504,38862.0,38861.0,0.51374825]
[1645869172901,2.68857504,38862.0,38861.0,0.4219759]
[1645869173101,2.78857504,38862.0,38861.0,0.4219759]
[1645869173301,2.68857504,38862.0,38861.0,0.4219759]
[1645869174601,2.68857504,38862.0,38861.0,0.42204343]
[1645869176260,2.68957504,38862.0,38861.0,0.42204343]
[1645869177060,2.68957504,38862.0,38861.0,0.42198343]
[1645869177264,0.9396,38858.0,38854.0,0.00112415]
[1645869177463,1.0851,38855.0,38854.0,0.00112415]
[1645869177766,2.06820558,38855.0,38854.0,0.00112415]
[1645869177961,2.07397064,38855.0,38854.0,0.00112415]
[1645869178162,2.07497064,38855.0,38851.0,0.16210094]
[1645869178363,0.7851,38853.0,38851.0,0.16238196]
[1645869178714,0.9367,38852.0,38851.0,0.16238196]
[1645869179306,0.9367,38852.0,38851.0,0.16210094]
[1645869180107,0.90803546,38852.0,38851.0,0.16210094]
[1645869180406,0.8867,38852.0,38851.0,0.16210094]
[1645869180608,0.1016,38852.0,38851.0,0.90597277]
[1645869182206,0.1536,38852.0,38851.0,1.09996291]
[1645869183455,0.1536,38852.0,38851.0,0.90597277]
[1645869183656,0.1516,38852.0,38851.0,0.90597277]
[1645869184257,0.1546,38852.0,38851.0,0.90597277]
[1645869184663,0.0546,38852.0,38851.0,0.90597277]
[1645869184859,0.003,38852.0,38851.0,1.20597277]
[1645869185157,0.003,38852.0,38851.0,0.90597277]
[1645869185562,0.78228674,38863.0,38853.0,0.02576]
[1645869185563,0.40617121,38863.0,38853.0,0.02576]
[1645869185759,0.20016,38860.0,38854.0,0.31242482]
[1645869186211,0.20016,38860.0,38855.0,0.01029]
[1645869186617,0.20016,38860.0,38855.0,0.31029]
[1645869187112,0.20016,38860.0,38855.0,0.32576]
[1645869188316,0.20216,38860.0,38855.0,0.32576]
[1645869188716,0.20216,38860.0,38856.0,0.1]
[1645869189515,0.20016,38860.0,38856.0,0.1]
[1645869190256,0.20216,38860.0,38856.0,0.1]
[1645869190556,0.20216,38860.0,38857.0,0.3]
[1645869190756,0.20216,38860.0,38856.0,0.1]
[1645869191562,0.20016,38860.0,38856.0,0.1]
[1645869192359,0.20216,38860.0,38856.0,0.1]
[1645869193707,0.20016,38860.0,38856.0,0.1]
[1645869194314,0.20016,38860.0,38855.0,0.1]
[1645869194315,0.58257654,38860.0,38855.0,0.1]
[1645869194908,0.20216,38860.0,38854.0,0.21242482]
[1645869195107,0.58257654,38860.0,38854.0,0.21242482]
[1645869195510,0.58057654,38860.0,38854.0,0.21242482]
[1645869195708,0.58057654,38860.0,38854.0,0.23816482]
[1645869195910,0.58057654,38860.0,38856.0,0.1]
[1645869196211,0.58057654,38860.0,38854.0,0.33816482]
[1645869197857,0.58077754,38860.0,38854.0,0.33816482]
[1645869198255,0.58277754,38860.0,38854.0,0.33816482]
[1645869198458,0.58277754,38860.0,38855.0,0.02574]
[1645869198657,0.202361,38860.0,38855.0,0.12574]
[1645869199657,0.202361,38860.0,38855.0,0.1]
[1645869200458,0.202361,38860.0,38855.0,0.0995436]
[1645869200860,0.202361,38860.0,38855.0,0.1252836]
[1645869201060,0.202361,38860.0,38855.0,0.4252836]
[1645869201515,0.200361,38860.0,38855.0,0.4252836]
[1645869202317,0.200361,38860.0,38855.0,0.1252836]
[1645869202516,0.200361,38860.0,38855.0,0.4252836]
[1645869202917,0.200361,38860.0,38855.0,0.1252836]
[1645869203116,0.200361,38860.0,38855.0,0.0995436]
[1645869204418,0.202361,38860.0,38855.0,0.0995436]
[1645869204721,0.212651,38860.0,38855.0,0.0995436]
[1645869205357,0.212651,38860.0,38854.0,0.21242482]
[1645869205557,0.212651,38860.0,38855.0,0.0995436]
[1645869205757,0.210651,38860.0,38855.0,0.0995436]
[1645869206156,0.210651,38860.0,38854.0,0.31196842]
[1645869207159,0.210651,38860.0,38855.0,0.02574]
[1645869207362,0.210651,38860.0,38855.0,0.32574]
[1645869207759,0.010491,38860.0,38859.0,0.02574]
[1645869207958,0.010491,38860.0,38859.0,0.704096]
[1645869208159,0.010491,38860.0,38859.0,0.32574]
[1645869208361,0.010491,38860.0,38859.0,0.704096]
[1645869208362,9.1e-05,38860.0,38859.0,0.704096]
[1645869209411,9.1e-05,38860.0,38859.0,0.404096]
[1645869209812,9.1e-05,38860.0,38859.0,0.02574]
[1645869210412,0.003091,38860.0,38859.0,0.02574]
[1645869211014,0.003091,38860.0,38857.0,0.378356]
[1645869211213,0.003091,38860.0,38855.0,0.4201]
[1645869211214,0.003091,38860.0,38859.0,0.404096]
[1645869211415,0.003091,38860.0,38859.0,0.02574]
[1645869211617,9.1e-05,38860.0,38859.0,0.02574]
[1645869212315,9.1e-05,38860.0,38856.0,0.02574]
[1645869212562,0.003091,38860.0,38856.0,0.02574]
[1645869213562,9.1e-05,38860.0,38856.0,0.02574]
[1645869214461,0.003091,38860.0,38856.0,0.02574]
[1645869215067,0.003091,38860.0,38855.0,0.1201]
[1645869215464,0.06748,38860.0,38855.0,0.1201]
[1645869215662,0.06448,38860.0,38853.0,0.01029]
[1645869216314,0.0516,38859.0,38853.0,0.01029]
[1645869216514,0.2007,38855.0,38853.0,0.01029]
[1645869218317,0.2027,38855.0,38853.0,0.01029]
[1645869219717,0.2007,38855.0,38853.0,0.01029]
[1645869220471,0.2017,38855.0,38853.0,0.01029]
[1645869221267,0.2017,38855.0,38852.0,0.009]
[1645869221669,0.2007,38855.0,38852.0,0.009]
[1645869222471,0.2017,38855.0,38852.0,0.009]
[1645869223713,0.2007,38855.0,38852.0,0.009]
[1645869224514,0.2027,38855.0,38852.0,0.009]
[1645869225915,0.2007,38855.0,38852.0,0.009]
[1645869228160,0.2007,38855.0,38853.0,0.23636431]
[1645869230363,0.2027,38855.0,38853.0,0.23636431]
[1645869231524,0.20097551,38855.0,38853.0,0.23636431]
[1645869231823,0.19897551,38855.0,38853.0,0.23636431]
[1645869232423,0.20097551,38855.0,38853.0,0.23636431]
[1645869233624,0.19897551,38855.0,38853.0,0.23636431]
[1645869234425,0.20197551,38855.0,38853.0,0.23636431]
[1645869235665,0.34435162,38857.0,38853.0,0.23636431]
[1645869236566,0.02058,38855.0,38853.0,0.23636431]
[1645869237264,0.02058,38855.0,38852.0,0.009]
[1645869239306,0.0516,38854.0,38852.0,0.009]
[1645869239707,0.0315202,38853.0,38852.0,0.009]
[1645869239905,0.0835766,38853.0,38852.0,0.009]
[1645869240504,0.0855766,38853.0,38852.0,0.009]
[1645869241210,0.08606026,38853.0,38852.0,0.009]
[1645869241408,0.08560386,38853.0,38852.0,0.009]
[1645869241906,0.0520564,38853.0,38852.0,0.009]
[1645869242961,0.07924637,38853.0,38852.0,0.009]
[1645869244161,0.4327106,38853.0,38852.0,0.009]
[1645869246063,0.4583339,38853.0,38852.0,0.009]
[1645869246312,0.63237963,38853.0,38852.0,0.009]
[1645869246509,0.27991292,38853.0,38852.0,0.009]
[1645869246709,0.0786797,38853.0,38852.0,0.009]
[1645869247711,0.1776797,38853.0,38852.0,0.009]
[1645869248511,0.9657797,38853.0,38852.0,0.009]
[1645869248712,1.13982543,38853.0,38852.0,0.009]
[1645869248914,0.35472543,38853.0,38852.0,0.009]
[1645869249714,0.35172543,38853.0,38852.0,0.009]
[1645869250162,1.43186259,38853.0,38852.0,0.009]
[1645869250361,1.88264897,38853.0,38852.0,0.009]
[1645869250563,1.88364897,38853.0,38852.0,0.009]
[1645869250960,0.80351181,38853.0,38852.0,0.009]
[1645869251761,0.82969515,38853.0,38852.0,0.009]
[1645869252662,0.82969515,38853.0,38851.0,0.7441526]
[1645869252663,1.9851,38852.0,38851.0,0.74187183]
[1645869252865,1.9851,38852.0,38851.0,0.7401526]
[1645869252866,2.18950664,38852.0,38851.0,0.7401526]
[1645869253066,5.03039199,38852.0,38851.0,0.7301526]
[1645869253266,6.14239733,38852.0,38851.0,0.3366006]
[1645869253464,6.14239733,38852.0,38851.0,0.17583354]
[1645869253714,0.7851,38849.0,38845.0,0.00212324]
[1645869253918,1.02498797,38846.0,38845.0,0.001]
[1645869254118,1.07658797,38846.0,38845.0,0.001]
[1645869254419,1.9851,38844.0,38833.0,0.09699]
[1645869254621,0.7851,38841.0,38828.0,0.1958]
[1645869254818,1.1319676,38843.0,38828.0,0.1958]
[1645869254819,0.0004564,38836.0,38828.0,0.1958]
[1645869255114,0.0516,38835.0,38828.0,0.1958]
[1645869255616,0.0256233,38834.0,38828.0,0.1958]
[1645869255914,0.0516,38833.0,38828.0,0.1958]
[1645869256315,0.0520564,38833.0,38826.0,0.051]
[1645869256515,0.3540564,38833.0,38826.0,0.051]
[1645869257216,0.0536,38833.0,38826.0,0.051]
[1645869257661,0.0536,38833.0,38831.0,0.00230265]
[1645869258061,0.0516,38833.0,38831.0,0.00230265]
[1645869258264,0.05042668,38833.0,38831.0,0.00230265]
[1645869258463,0.05242668,38833.0,38831.0,0.00230265]
[1645869258664,0.05242668,38833.0,38831.0,0.002]
[1645869258864,0.05242668,38833.0,38831.0,0.00230265]
[1645869259866,0.05042668,38833.0,38831.0,0.002]
[1645869260066,0.05042668,38833.0,38831.0,0.00230265]
[1645869260470,0.2004,38834.0,38833.0,0.10085336]
[1645869260668,0.1741458,38837.0,38836.0,0.17869413]
[1645869260868,0.0919,38838.0,38836.0,0.17869413]
[1645869261710,0.0889,38838.0,38836.0,0.17869413]
[1645869267272,0.319015,38843.0,38836.0,0.17869413]
[1645869267667,0.317015,38843.0,38836.0,0.17869413]
[1645869268469,0.317015,38843.0,38838.0,0.00030263]
[1645869268470,0.0004564,38841.0,38838.0,0.00030263]
[1645869268711,0.3,38842.0,38838.0,0.00030263]
[1645869268712,0.0004564,38840.0,38838.0,0.00030263]
[1645869269612,0.0004564,38840.0,38833.0,0.10085336]
[1645869269817,0.064424,38838.0,38837.0,0.00030264]
[1645869270015,0.0004564,38840.0,38837.0,0.00030264]
[1645869270714,0.20094,38837.0,38833.0,0.10085336]
[1645869272215,0.20094,38837.0,38833.0,0.10115601]
[1645869272460,0.20394,38837.0,38833.0,0.10115601]
[1645869273163,0.20394,38837.0,38833.0,0.10085336]
[1645869273359,0.20394,38837.0,38833.0,0.10115601]
[1645869273859,0.20094,38837.0,38833.0,0.10115601]
[1645869274360,0.20094,38837.0,38833.0,0.10085336]
[1645869274361,0.416026,38836.0,38833.0,0.10085336]
[1645869274562,0.0004564,38834.0,38833.0,0.10115601]
[1645869274760,0.0520564,38834.0,38833.0,0.10115601]
[1645869275561,0.0520564,38834.0,38833.0,0.10085336]
[1645869276620,0.0540564,38834.0,38833.0,0.10085336]
[1645869276818,0.05984053,38834.0,38833.0,0.09585336]
[1645869277818,0.35784053,38834.0,38833.0,0.09585336]
[1645869278421,0.35784053,38834.0,38833.0,0.09358536]
[1645869278622,0.35984053,38834.0,38833.0,0.09358536]
[1645869279223,0.40984053,38834.0,38833.0,0.09258536]
[1645869279422,1.24494053,38834.0,38833.0,0.08958536]
[1645869279623,1.72554433,38834.0,38833.0,0.08958536]
[1645869279822,1.89931629,38834.0,38833.0,0.08958536]
[1645869280668,1.90031629,38834.0,38833.0,0.08758536]
[1645869280867,0.01477925,38831.0,38830.0,2.65e-06]
[1645869281071,0.36683565,38831.0,38830.0,2.65e-06]
[1645869281273,1.47200028,38831.0,38830.0,2.65e-06]
[1645869281467,1.64614608,38831.0,38830.0,2.65e-06]
[1645869281668,2.98577119,38831.0,38820.0,0.0041]
[1645869281868,0.0004564,38826.0,38820.0,0.0041]
[1645869282068,0.0520564,38826.0,38820.0,0.0041]
[1645869282268,0.81282103,38826.0,38820.0,0.0041]
[1645869282470,0.27073934,38826.0,38821.0,0.012]
[1645869282668,0.49848514,38826.0,38821.0,0.012]
[1645869283269,0.49848514,38826.0,38818.0,0.0521]
[1645869283270,0.1544,38823.0,38818.0,0.0521]
[1645869283474,0.8851,38819.0,38818.0,0.0521]
[1645869283724,3.26957462,38819.0,38818.0,0.0021]
[1645869283925,1.4811,38819.0,38818.0,0.0021]
[1645869284122,0.696,38819.0,38818.0,0.0021]
[1645869284324,0.996,38819.0,38818.0,0.0021]
[1645869284522,1.2701458,38819.0,38818.0,0.0021]
[1645869284726,1.3457691,38819.0,38818.0,0.0001]
[1645869285022,4.61474372,38819.0,38818.0,0.0001]
[1645869285223,4.61474372,38819.0,38817.0,0.0011]
[1645869285224,1.9851,38818.0,38817.0,0.0011]
[1645869285426,1.9851,38818.0,38817.0,0.00138147]
[1645869285427,2.6811,38818.0,38817.0,0.00138147]
[1645869285622,2.86102993,38818.0,38817.0,0.00138147]
[1645869286221,3.01542993,38818.0,38817.0,0.00138147]
[1645869286424,2.185,38817.0,38816.0,0.0021]
[1645869286625,2.981,38817.0,38816.0,0.00238148]
[1645869286823,3.1051458,38817.0,38816.0,0.00138148]
[1645869287025,2.45218446,38817.0,38816.0,0.00138148]
[1645869287666,2.45218446,38817.0,38816.0,0.0011]
[1645869288665,0.7,38816.0,38814.0,0.0013]
[1645869288866,0.996,38815.0,38814.0,0.0013]
[1645869289067,1.046,38815.0,38814.0,0.0013]
[1645869289268,1.2201458,38815.0,38814.0,0.0013]
[1645869290068,2.0052458,38815.0,38814.0,0.0013]
[1645869290268,2.01683654,38815.0,38814.0,0.0013]
[1645869290671,1.22593139,38815.0,38814.0,0.0013]
[1645869291310,2.01103139,38815.0,38814.0,0.0013]
[1645869292010,2.01103139,38815.0,38814.0,0.00032203]
[1645869292611,1.22584854,38815.0,38814.0,0.00032203]
[1645869293009,2.01094854,38815.0,38814.0,0.00032203]
[1645869293215,2.02078511,38815.0,38814.0,0.00032203]
[1645869293413,1.9851,38814.0,38813.0,0.00338734]
[1645869293612,2.6811,38814.0,38813.0,0.0031]
[1645869293811,2.6811,38814.0,38813.0,0.00338734]
[1645869293812,2.86103139,38814.0,38813.0,0.00338734]
[1645869294212,3.01543139,38814.0,38813.0,0.00338734]
[1645869294411,3.01543139,38814.0,38811.0,0.002]
[1645869294613,1.9839,38813.0,38811.0,0.002]
[1645869294818,0.94023318,38811.0,38807.0,0.001]
[1645869295073,0.94023318,38811.0,38806.0,0.0021]
[1645869295074,0.7851,38807.0,38806.0,0.0021]
[1645869295273,2.6328016,38807.0,38806.0,0.0021]
[1645869295472,0.9395,38805.0,38799.0,0.0011]
[1645869295675,1.4295,38800.0,38799.0,0.0011]
[1645869295879,0.746,38800.0,38799.0,0.0011]
[1645869296074,0.16489078,38800.0,38799.0,0.0011]
[1645869296675,0.19051408,38800.0,38799.0,0.0011]
[1645869297074,0.24051408,38800.0,38799.0,0.0011]
[1645869298274,0.4148025,38800.0,38799.0,0.0011]
[1645869298481,0.85,38799.0,38797.0,0.0031]
[1645869298713,1.09351433,38799.0,38798.0,0.00010108]
[1645869298913,1.14511433,38799.0,38798.0,0.00010108]
[1645869299117,1.19039142,38799.0,38798.0,0.00010108]
[1645869299714,1.19039142,38799.0,38797.0,0.0031]
[1645869299913,0.8351,38798.0,38797.0,0.00340303]
[1645869300113,0.8867,38798.0,38797.0,0.00340303]
[1645869300313,0.27588842,38798.0,38797.0,0.00340303]
[1645869300512,0.9,38797.0,38795.0,0.00140303]
[1645869300714,0.0516,38796.0,38795.0,0.00140303]
[1645869303167,0.8367,38796.0,38795.0,0.00140303]
[1645869303370,0.0772233,38796.0,38795.0,0.00140303]
[1645869303774,0.0516,38796.0,38795.0,0.00140303]
[1645869304774,1.1367,38796.0,38795.0,0.00140303]
[1645869304975,1.1367,38796.0,38794.0,0.00240304]
[1645869304976,0.7851,38795.0,38794.0,0.00240304]
[1645869305178,0.7851,38795.0,38792.0,0.001]
[1645869305179,1.9851,38794.0,38792.0,0.001]
[1645869305373,2.8809,38794.0,38792.0,0.001]
[1645869305574,2.8809,38794.0,38791.0,0.01]
[1645869305575,1.4351,38793.0,38791.0,0.01]
[1645869305773,2.0309,38792.0,38791.0,0.01]
[1645869306224,0.129027,38790.0,38782.0,0.1919]
[1645869306425,0.6444,38787.0,38782.0,0.1919]
[1645869306618,0.6444,38787.0,38779.0,0.1883]
[1645869306619,0.1417443,38786.0,38779.0,0.1883]
[1645869306919,0.20052,38784.0,38779.0,0.1883]
[1645869307118,0.20052,38784.0,38779.0,0.15839432]
[1645869307518,0.0516,38783.0,38779.0,0.15839432]
[1645869307719,0.06452,38782.0,38779.0,0.15839432]
[1645869307918,0.0516,38781.0,38779.0,0.15839432]
[1645869308321,0.0516,38781.0,38777.0,0.0031]
[1645869308820,0.3516,38781.0,38777.0,0.0031]
[1645869309029,0.6444,38778.0,38777.0,0.0031]
[1645869309221,0.6444,38778.0,38776.0,0.001]
[1645869309222,0.7216233,38778.0,38776.0,0.001]
[1645869309421,1.6944,38777.0,38776.0,0.001]
[1645869309621,2.40065544,38777.0,38776.0,0.001]
[1645869309825,1.35065544,38777.0,38776.0,0.001]
[1645869310275,0.696,38777.0,38776.0,0.001]
[1645869310672,0.697,38777.0,38776.0,0.001]
[1645869311070,0.697,38777.0,38776.0,0.21773284]
[1645869311875,0.0516,38777.0,38776.0,0.21773284]
[1645869313477,0.025,38781.0,38776.0,0.21773284]
[1645869313723,0.2007,38784.0,38776.0,0.21773284]
[1645869313924,0.2007,38784.0,38777.0,0.1]
[1645869314124,0.2007,38784.0,38776.0,0.21773284]
[1645869314329,0.2007,38784.0,38778.0,0.00030284]
[1645869314527,0.2007,38784.0,38782.0,0.19402353]
[1645869315027,0.2007,38784.0,38778.0,0.00030284]
[1645869315028,0.329737,38784.0,38778.0,0.00030284]
[1645869315225,0.0901423,38783.0,38776.0,0.001]
[1645869315425,0.064518,38782.0,38781.0,0.00030283]
[1645869316426,0.064518,38782.0,38776.0,0.001]
[1645869316628,0.067518,38782.0,38780.0,0.00030283]
[1645869317133,0.0772233,38781.0,38780.0,0.00024283]
[1645869317327,0.1272233,38781.0,38780.0,0.00024283]
[1645869317571,0.1016,38781.0,38780.0,0.00024283]
[1645869317772,0.1016,38781.0,38776.0,0.001]
[1645869317971,0.1266,38781.0,38776.0,0.001]
[1645869318170,0.1266,38781.0,38775.0,0.001]
[1645869318772,0.20046,38778.0,38775.0,0.001]
[1645869318973,0.064523,38777.0,38775.0,0.001]
[1645869319171,0.064523,38777.0,38776.0,9.983e-05]
[1645869319572,0.116123,38777.0,38776.0,9.983e-05]
[1645869320171,0.116123,38777.0,38775.0,0.001]
[1645869320172,0.0516,38777.0,38775.0,0.001]
[1645869320371,0.0516,38777.0,38775.0,0.00109983]
[1645869321221,0.3256233,38776.0,38775.0,0.00109983]
[1645869321416,0.3772233,38776.0,38775.0,0.001]
[1645869321817,0.4272233,38776.0,38775.0,0.001]
[1645869322620,3.69720792,38776.0,38775.0,0.001]
[1645869322819,0.78517293,38775.0,38774.0,0.002]
[1645869323018,1.14708293,38775.0,38774.0,0.002]
[1645869323317,0.849648,38773.0,38767.0,0.0011]
[1645869323519,0.7851,38771.0,38767.0,0.0011]
[1645869323717,0.7851,38769.0,38767.0,0.0011]
[1645869323919,0.3,38768.0,38767.0,0.0011]
[1645869324119,1.08746,38769.0,38767.0,0.0011]
[1645869324319,1.8351,38767.0,38763.0,0.1947]
[1645869324719,1.9101,38767.0,38763.0,0.1947]
[1645869324967,1.9101,38767.0,38763.0,0.1897]
[1645869324968,0.264892,38765.0,38763.0,0.1897]
[1645869325162,0.264892,38765.0,38763.0,0.18999276]
[1645869325362,0.0256233,38764.0,38763.0,0.00029276]
[1645869325763,0.0756233,38764.0,38763.0,0.00029276]
[1645869325964,0.05,38764.0,38763.0,0.00029276]
[1645869326163,0.116155,38766.0,38759.0,0.0021]
[1645869326364,0.064553,38763.0,38762.0,0.00029152]
[1645869326564,1.85590844,38763.0,38762.0,0.00029152]
[1645869326764,1.2,38762.0,38759.0,0.0021]
[1645869326965,1.2516,38762.0,38759.0,0.0021]
[1645869327173,1.8351,38761.0,38759.0,0.0021]
[1645869327368,1.8351,38761.0,38755.0,0.001]
[1645869327369,0.9395,38758.0,38755.0,0.001]
[1645869327668,0.9395,38756.0,38750.0,4.5197413]
[1645869327867,0.9395,38754.0,38750.0,4.5197413]
[1645869328065,0.9395,38752.0,38750.0,4.5197413]
[1645869328264,1.70606544,38751.0,38750.0,4.5197413]
[1645869328466,2.0312138,38751.0,38750.0,2.1366163]
[1645869328747,4.64426342,38751.0,38750.0,2.1124163]
[1645869328939,5.29445686,38751.0,38750.0,1.7248403]
[1645869329139,5.29445686,38751.0,38750.0,0.69013036]